bitfinex/quotes_BTCUSD_20250518
["timestamp","ask_amount","ask_price","bid_price","bid_amount"]
[1747611000289,0.31425697,105840.0,105830.0,1.05855478]
[1747611000505,0.37675697,105840.0,105830.0,1.25095478]
[1747611001375,0.37675697,105840.0,105830.0,1.05855478]
[1747611001799,0.37675697,105840.0,105830.0,1.25095478]
[1747611002234,0.57516886,105840.0,105830.0,1.03456544]
[1747611002448,0.58461761,105840.0,105830.0,0.49442662]
[1747611002663,0.58461761,105840.0,105830.0,0.50387564]
[1747611003125,0.58461761,105840.0,105830.0,0.49442662]
[1747611003538,0.58461761,105840.0,105830.0,0.69285806]
[1747611003758,0.58461761,105840.0,105830.0,0.01693521]
[1747611003988,0.79930868,105840.0,105830.0,0.01693521]
[1747611004208,0.89661808,105840.0,105830.0,0.01693521]
[1747611004845,0.89661808,105840.0,105830.0,0.01593521]
[1747611005060,0.89661808,105840.0,105830.0,0.002]
[1747611005271,1.08901808,105840.0,105830.0,0.002]
[1747611005706,1.08901808,105840.0,105800.0,0.22684075]
[1747611005707,0.18900018,105820.0,105800.0,0.22684075]
[1747611005889,0.08130099,105810.0,105800.0,0.66423915]
[1747611006328,0.18899753,105830.0,105820.0,0.21734913]
[1747611006329,0.04114858,105830.0,105820.0,0.21734913]
[1747611006536,0.06004574,105830.0,105820.0,0.21734913]
[1747611006745,0.05059707,105830.0,105820.0,0.21734913]
[1747611006949,0.084746,105830.0,105820.0,0.21734913]
[1747611007188,0.09419484,105830.0,105820.0,0.21734913]
[1747611007394,0.27372877,105830.0,105820.0,0.1984501]
[1747611007806,0.27372877,105830.0,105820.0,0.20789984]
[1747611008008,0.28317788,105830.0,105820.0,0.2173494]
[1747611008263,0.28317788,105830.0,105820.0,0.2141055]
[1747611008472,0.07529689,105830.0,105820.0,0.33031393]
[1747611008688,0.08474556,105830.0,105820.0,0.33031393]
[1747611009106,0.08474573,105830.0,105820.0,0.33031393]
[1747611009289,0.08474573,105830.0,105820.0,0.34463889]
[1747611009484,0.09419475,105830.0,105820.0,0.34463889]
[1747611009691,0.09519475,105830.0,105820.0,0.34463889]
[1747611009886,0.08574573,105830.0,105820.0,0.34463889]
[1747611010127,0.07629689,105830.0,105820.0,0.34463889]
[1747611010334,0.08574564,105830.0,105820.0,0.34463889]
[1747611010723,0.10464359,105830.0,105820.0,0.34463898]
[1747611010934,0.27472939,105830.0,105820.0,0.11784002]
[1747611011084,0.27472939,105830.0,105820.0,0.12728994]
[1747611011292,0.26528046,105830.0,105820.0,0.11784002]
[1747611011708,0.26528046,105830.0,105820.0,0.00620566]
[1747611013435,0.26445001,105820.0,105810.0,0.24076733]
[1747611013643,0.28334967,105820.0,105810.0,0.31917574]
[1747611014272,0.28334967,105820.0,105810.0,0.32862628]
[1747611014930,0.28334967,105820.0,105810.0,0.320885]
[1747611015483,0.27389993,105820.0,105810.0,0.00620566]
[1747611016106,0.27489993,105820.0,105810.0,0.00620566]
[1747611016314,0.08200108,105810.0,105800.0,0.77319654]
[1747611016533,0.08200108,105810.0,105800.0,0.87050594]
[1747611016702,0.09145171,105810.0,105800.0,0.31928361]
[1747611016943,0.07255018,105810.0,105800.0,0.33818612]
[1747611017146,0.08200072,105810.0,105800.0,0.33818612]
[1747611017513,0.09145144,105810.0,105800.0,0.33918612]
[1747611017893,0.09145144,105810.0,105800.0,0.33344484]
[1747611018313,0.08200054,105810.0,105800.0,0.33344484]
[1747611018550,0.001,105820.0,105810.0,0.21736967]
[1747611018761,0.0104492,105820.0,105810.0,0.31467907]
[1747611018971,0.0434492,105820.0,105810.0,0.31467907]
[1747611019140,0.001,105820.0,105810.0,0.31467907]
[1747611019350,0.001,105820.0,105810.0,0.65467907]
[1747611019557,0.001,105820.0,105810.0,0.84711907]
[1747611019975,0.001,105820.0,105810.0,0.85332473]
[1747611020401,0.001,105820.0,105810.0,1.28084759]
[1747611020617,0.001,105820.0,105810.0,1.31414759]
[1747611020834,0.001,105820.0,105810.0,1.24804759]
[1747611021328,0.002,105820.0,105810.0,1.24804759]
[1747611021739,0.002,105820.0,105810.0,1.26039795]
[1747611023263,0.002,105820.0,105810.0,1.26139795]
[1747611024132,0.002,105820.0,105810.0,1.06895795]
[1747611024354,0.002,105820.0,105810.0,1.45363795]
[1747611024790,0.04639671,105830.0,105820.0,0.21734913]
[1747611025023,0.07089581,105840.0,105830.0,0.21732859]
[1747611025241,0.14304403,105840.0,105830.0,0.31463799]
[1747611025464,0.3320085,105840.0,105830.0,0.31463817]
[1747611025676,0.3320085,105840.0,105830.0,0.33029241]
[1747611025900,0.3320085,105840.0,105830.0,0.32084383]
[1747611026128,0.3320085,105840.0,105830.0,0.20463701]
[1747611026377,0.3320085,105840.0,105830.0,0.22353443]
[1747611026600,0.3320085,105840.0,105830.0,0.21408576]
[1747611027080,0.32256073,105840.0,105830.0,0.21408576]
[1747611027327,0.32256073,105840.0,105830.0,0.22847534]
[1747611028104,0.31311269,105840.0,105830.0,0.22847534]
[1747611028341,0.30366447,105840.0,105830.0,0.20957739]
[1747611028761,0.30366447,105840.0,105830.0,0.2190265]
[1747611028949,0.30366447,105840.0,105830.0,0.22847552]
[1747611029413,0.30366447,105840.0,105830.0,0.23792445]
[1747611029620,0.30366447,105840.0,105830.0,0.22353505]
[1747611030050,0.12414804,105840.0,105830.0,0.2424322]
[1747611030288,0.14304394,105840.0,105830.0,0.23298318]
[1747611030507,0.13359581,105840.0,105830.0,0.24243167]
[1747611030726,0.14304394,105840.0,105830.0,0.24243167]
[1747611030940,0.13359581,105840.0,105830.0,0.24243167]
[1747611031167,0.33200841,105840.0,105830.0,0.2235346]
[1747611031387,0.33200841,105840.0,105830.0,0.23298327]
[1747611031594,0.14304394,105840.0,105830.0,0.24243132]
[1747611032458,0.14304394,105840.0,105830.0,0.2501966]
[1747611032688,0.13359581,105840.0,105830.0,0.2501966]
[1747611033133,0.14304322,105840.0,105830.0,0.2501966]
[1747611033564,0.1241475,105840.0,105830.0,0.2501966]
[1747611033778,0.13359527,105840.0,105830.0,0.347506]
[1747611034456,0.12414742,105840.0,105830.0,0.539666]
[1747611034687,0.14304269,105840.0,105830.0,0.539666]
[1747611034899,0.15249064,105840.0,105830.0,0.539666]
[1747611035110,0.14304269,105840.0,105830.0,0.539666]
[1747611035328,0.15249064,105840.0,105830.0,0.539666]
[1747611036373,0.16193868,105840.0,105830.0,0.539666]
[1747611036821,0.16293868,105840.0,105830.0,0.539666]
[1747611037035,0.05293868,105840.0,105830.0,0.539666]
[1747611038251,0.05293868,105840.0,105830.0,0.53190072]
[1747611038959,0.05293939,105840.0,105830.0,0.53190072]
[1747611039414,0.05293939,105840.0,105830.0,0.33974072]
[1747611039870,0.02934322,105840.0,105830.0,0.33974072]
[1747611040121,0.002,105840.0,105830.0,0.33974072]
[1747611040356,0.002,105840.0,105830.0,0.37084072]
[1747611040553,0.002,105840.0,105830.0,0.40164072]
[1747611041620,0.002,105840.0,105830.0,0.409406]
[1747611041833,0.002,105840.0,105830.0,0.410406]
[1747611042253,0.002,105840.0,105830.0,0.750406]
[1747611042529,0.10366593,105860.0,105850.0,0.2172878]
[1747611042749,0.10366593,105860.0,105850.0,0.20784101]
[1747611042750,0.2925947,105860.0,105850.0,0.20784101]
[1747611042961,0.28314889,105860.0,105850.0,0.21728834]
[1747611043178,0.28314889,105860.0,105850.0,0.2267354]
[1747611043395,0.28314889,105860.0,105850.0,0.23294106]
[1747611043835,0.28361957,105860.0,105850.0,0.23294106]
[1747611045002,0.28361957,105860.0,105850.0,0.223494]
[1747611045611,0.28461957,105860.0,105850.0,0.223494]
[1747611045836,0.27517349,105860.0,105850.0,0.223494]
[1747611047366,0.27517349,105860.0,105850.0,0.21404685]
[1747611047839,0.27517349,105860.0,105850.0,0.24221335]
[1747611048113,0.26572732,105860.0,105850.0,0.03437216]
[1747611052306,0.26572732,105860.0,105850.0,0.00620566]
[1747611052710,0.26572732,105860.0,105850.0,0.19515228]
[1747611053027,0.25628089,105860.0,105850.0,0.01565299]
[1747611053227,0.25628089,105860.0,105850.0,0.00620566]
[1747611053640,0.26572732,105860.0,105850.0,0.20459952]
[1747611053847,0.02364472,105860.0,105850.0,0.22349337]
[1747611054017,0.21257349,105860.0,105850.0,0.21404658]
[1747611054229,0.24507349,105860.0,105850.0,0.22349355]
[1747611054428,0.04669802,105860.0,105850.0,0.23294025]
[1747611054684,0.1066359,105860.0,105850.0,0.23294025]
[1747611054990,0.11608224,105860.0,105850.0,0.23294025]
[1747611055382,0.0425359,105860.0,105850.0,0.23294025]
[1747611055590,0.3068111,105860.0,105850.0,0.23294043]
[1747611056172,0.29736547,105860.0,105850.0,0.22349355]
[1747611056378,0.28791957,105860.0,105850.0,0.2420727]
[1747611056809,0.28791957,105860.0,105850.0,0.25151967]
[1747611057016,0.27847358,105860.0,105850.0,0.25151967]
[1747611058528,0.27847358,105860.0,105850.0,0.26096655]
[1747611058937,0.27847358,105860.0,105850.0,0.27041334]
[1747611059403,0.27847358,105860.0,105850.0,0.26096655]
[1747611059850,0.27847358,105860.0,105850.0,0.2420727]
[1747611061006,0.26902732,105860.0,105850.0,0.23262564]
[1747611061176,0.26902732,105860.0,105850.0,0.24207279]
[1747611061583,0.26902732,105860.0,105850.0,0.23262564]
[1747611061789,0.25958089,105860.0,105850.0,0.00620566]
[1747611061991,0.91158136,105860.0,105850.0,0.00620566]
[1747611062241,1.01413431,105860.0,105850.0,0.00620566]
[1747611062402,0.92158136,105860.0,105850.0,0.00620566]
[1747611063165,0.94612221,105860.0,105850.0,0.00620566]
[1747611063378,0.19839377,105850.0,105840.0,0.01811564]
[1747611063619,0.57209424,105850.0,105840.0,0.01811564]
[1747611063817,0.95597424,105850.0,105840.0,0.01811564]
[1747611064621,0.95697424,105850.0,105840.0,0.01811564]
[1747611064985,0.27119957,105820.0,105810.0,0.03416315]
[1747611066031,0.27119957,105820.0,105810.0,0.03816315]
[1747611066361,0.27119957,105820.0,105810.0,0.03825215]
[1747611066552,0.27219957,105820.0,105810.0,0.03825215]
[1747611066709,0.27219957,105820.0,105810.0,0.04125215]
[1747611067741,0.27219957,105820.0,105810.0,0.03825215]
[1747611067947,0.27219957,105820.0,105810.0,0.03625215]
[1747611068362,0.27219957,105820.0,105810.0,0.03825215]
[1747611068585,0.27219957,105820.0,105810.0,0.03425215]
[1747611070117,0.02934841,105820.0,105810.0,0.57215122]
[1747611070328,0.001,105820.0,105810.0,0.60345122]
[1747611070978,0.01044938,105820.0,105810.0,0.60345122]
[1747611071399,0.01989903,105820.0,105810.0,0.60545122]
[1747611071615,0.02934886,105820.0,105810.0,0.60745122]
[1747611071829,0.03879878,105820.0,105810.0,0.60745122]
[1747611072030,0.02934886,105820.0,105810.0,0.6152165]
[1747611072234,0.02934886,105820.0,105810.0,0.4232965]
[1747611072439,0.02934886,105820.0,105810.0,0.6152165]
[1747611072830,0.03879878,105820.0,105810.0,0.6152165]
[1747611074228,0.02934886,105820.0,105810.0,0.6152165]
[1747611074777,0.001,105820.0,105810.0,0.96975735]
[1747611075194,0.01389689,105830.0,105820.0,0.27994913]
[1747611075398,0.00944831,105830.0,105820.0,0.58871963]
[1747611075551,0.01889689,105830.0,105820.0,0.58871963]
[1747611075764,0.02834556,105830.0,105820.0,0.58871963]
[1747611076169,0.0377944,105830.0,105820.0,0.59492529]
[1747611076490,0.01889689,105830.0,105820.0,0.59492529]
[1747611077086,0.02834564,105830.0,105820.0,0.59492529]
[1747611077435,0.02834564,105830.0,105820.0,0.55352932]
[1747611077856,0.03779457,105830.0,105820.0,0.58964355]
[1747611078152,0.02834564,105830.0,105820.0,0.58964355]
[1747611078346,0.03879457,105830.0,105820.0,0.58964355]
[1747611078946,0.03879457,105830.0,105820.0,0.59164355]
[1747611079154,0.03879457,105830.0,105820.0,0.59364355]
[1747611080160,0.04824359,105830.0,105820.0,0.59364355]
[1747611080592,0.03879457,105830.0,105820.0,0.59364355]
[1747611080943,0.03879457,105830.0,105820.0,0.40168355]
[1747611081148,0.03879457,105830.0,105820.0,0.77775827]
[1747611081779,0.23722601,105830.0,105820.0,0.56732547]
[1747611081981,0.04824368,105830.0,105820.0,0.73765494]
[1747611082427,0.03879457,105830.0,105820.0,0.74710432]
[1747611082740,0.04824359,105830.0,105820.0,0.74710432]
[1747611082871,0.03879528,105830.0,105820.0,0.74710432]
[1747611083501,0.03879528,105830.0,105820.0,0.77720432]
[1747611083876,0.04824359,105830.0,105820.0,0.77720432]
[1747611084600,0.04824439,105830.0,105820.0,0.76775494]
[1747611084828,0.03879528,105830.0,105820.0,0.76775494]
[1747611085018,0.04824439,105830.0,105820.0,0.76775494]
[1747611085229,0.23722672,105830.0,105820.0,0.76775494]
[1747611085440,0.22777814,105830.0,105820.0,0.76775494]
[1747611085866,0.22777814,105830.0,105820.0,0.75830547]
[1747611086091,0.03879581,105830.0,105820.0,0.75830547]
[1747611086291,0.22777814,105830.0,105820.0,0.75830547]
[1747611086930,0.22777814,105830.0,105820.0,0.56474119]
[1747611087164,0.27378046,105830.0,105820.0,0.32662144]
[1747611087596,0.27378046,105830.0,105820.0,0.13478144]
[1747611087810,0.27378046,105830.0,105820.0,0.22931204]
[1747611089213,0.27378046,105830.0,105820.0,0.22731204]
[1747611089433,0.27378046,105830.0,105820.0,0.03547204]
[1747611089876,0.27378046,105830.0,105820.0,0.02770676]
[1747611090473,0.27378046,105830.0,105820.0,0.02570676]
[1747611091113,0.27378046,105830.0,105820.0,0.0195011]
[1747611091329,0.61478046,105830.0,105820.0,0.0195011]
[1747611092165,0.61578046,105830.0,105820.0,0.0195011]
[1747611094652,0.71308986,105830.0,105820.0,0.0195011]
[1747611094863,0.92778093,105830.0,105820.0,0.0195011]
[1747611095436,0.71308986,105830.0,105820.0,0.0195011]
[1747611096666,0.61578046,105830.0,105820.0,0.0195011]
[1747611100851,0.92778093,105830.0,105820.0,0.0195011]
[1747611102864,0.26145001,105820.0,105810.0,8.9e-05]
[1747611103008,0.35875941,105820.0,105810.0,8.9e-05]
[1747611104086,0.35975941,105820.0,105810.0,8.9e-05]
[1747611104496,0.36075941,105820.0,105810.0,8.9e-05]
[1747611105886,0.26345001,105820.0,105810.0,8.9e-05]
[1747611107077,0.23325001,105820.0,105810.0,8.9e-05]
[1747611108223,0.20045001,105820.0,105810.0,8.9e-05]
[1747611109525,0.20045001,105820.0,105810.0,0.062089]
[1747611110352,0.20045001,105820.0,105810.0,0.030689]
[1747611110558,0.20045001,105820.0,105810.0,0.03691057]
[1747611111348,0.20045001,105820.0,105810.0,0.00631057]
[1747611113023,0.23365001,105820.0,105810.0,0.00631057]
[1747611113317,0.20045001,105820.0,105810.0,0.00631057]
[1747611113516,0.23335001,105820.0,105810.0,0.00631057]
[1747611113951,0.26495001,105820.0,105810.0,0.00631057]
[1747611114164,0.47764108,105820.0,105810.0,0.00631057]
[1747611114592,0.91495048,105820.0,105810.0,0.00831057]
[1747611115730,0.91495048,105820.0,105810.0,0.00631057]
[1747611115731,1.10679048,105820.0,105810.0,0.00631057]
[1747611115938,1.10779048,105820.0,105810.0,8.9e-05]
[1747611116181,1.10879048,105820.0,105810.0,8.9e-05]
[1747611116401,1.13671927,105820.0,105810.0,8.9e-05]
[1747611116608,1.12333133,105820.0,105810.0,8.9e-05]
[1747611117058,1.3580224,105820.0,105810.0,8.9e-05]
[1747611117271,1.14233133,105820.0,105810.0,8.9e-05]
[1747611117456,1.3560224,105820.0,105810.0,8.9e-05]
[1747611117671,1.14633133,105820.0,105810.0,8.9e-05]
[1747611118121,1.42603429,105820.0,105810.0,8.9e-05]
[1747611118747,1.41603429,105820.0,105810.0,8.9e-05]
[1747611118895,1.43743891,105820.0,105810.0,8.9e-05]
[1747611119097,1.83551891,105820.0,105810.0,8.9e-05]
[1747611119342,1.83951891,105820.0,105810.0,8.9e-05]
[1747611119523,1.81611429,105820.0,105810.0,8.9e-05]
[1747611119947,1.33172026,105820.0,105810.0,8.9e-05]
[1747611120172,1.35457133,105820.0,105810.0,8.9e-05]
[1747611120380,1.73813133,105820.0,105810.0,8.9e-05]
[1747611121219,0.97713941,105820.0,105810.0,8.9e-05]
[1747611121433,0.77533941,105820.0,105810.0,8.9e-05]
[1747611121807,1.11533941,105820.0,105810.0,8.9e-05]
[1747611122016,1.08373941,105820.0,105810.0,8.9e-05]
[1747611122217,0.71083941,105820.0,105810.0,8.9e-05]
[1747611122441,0.73453941,105820.0,105810.0,8.9e-05]
[1747611122643,1.07453941,105820.0,105810.0,8.9e-05]
[1747611122847,1.08153941,105820.0,105810.0,8.9e-05]
[1747611123889,0.98423001,105820.0,105810.0,8.9e-05]
[1747611124137,0.95353001,105820.0,105810.0,8.9e-05]
[1747611125150,0.98023001,105820.0,105810.0,8.9e-05]
[1747611125570,0.97923001,105820.0,105810.0,8.9e-05]
[1747611125981,0.98123001,105820.0,105810.0,8.9e-05]
[1747611126644,0.20245001,105820.0,105810.0,8.9e-05]
[1747611127745,0.21189975,105820.0,105810.0,8.9e-05]
[1747611127955,0.20245001,105820.0,105810.0,0.062089]
[1747611128170,0.20245001,105820.0,105810.0,0.26055777]
[1747611128386,0.20045001,105820.0,105810.0,0.26678171]
[1747611128603,0.20045001,105820.0,105810.0,0.06831294]
[1747611128874,0.19200018,105820.0,105810.0,0.06831294]
[1747611129085,0.19000018,105820.0,105810.0,0.07776375]
[1747611129720,0.19000018,105820.0,105810.0,0.06831294]
[1747611129936,0.19000018,105820.0,105810.0,0.07776384]
[1747611130149,0.19000018,105820.0,105810.0,0.06831294]
[1747611130594,0.001,105820.0,105810.0,0.91772196]
[1747611130810,0.001,105820.0,105810.0,0.91583201]
[1747611131346,0.03879466,105830.0,105820.0,0.28204913]
[1747611131574,0.04824377,105830.0,105820.0,0.37935853]
[1747611131781,0.04824377,105830.0,105820.0,0.57111853]
[1747611131935,0.01989698,105830.0,105820.0,0.91111853]
[1747611132143,0.02934591,105830.0,105820.0,0.91734247]
[1747611132339,0.03879484,105830.0,105820.0,0.91734247]
[1747611132723,0.01989707,105830.0,105820.0,0.93160928]
[1747611132858,0.02934564,105830.0,105820.0,0.94615013]
[1747611133060,0.001,105830.0,105820.0,0.94615013]
[1747611133265,0.01989707,105830.0,105820.0,0.94715013]
[1747611133467,0.02934591,105830.0,105820.0,0.95015013]
[1747611133675,0.02934591,105830.0,105820.0,0.97127763]
[1747611134057,0.01989707,105830.0,105820.0,0.97127763]
[1747611134278,0.02934591,105830.0,105820.0,0.97127763]
[1747611134478,0.02934591,105830.0,105820.0,0.97027763]
[1747611134704,0.0104484,105830.0,105820.0,0.97027763]
[1747611134906,0.01989707,105830.0,105820.0,0.98104291]
[1747611135071,0.01989698,105830.0,105820.0,1.39474291]
[1747611135279,0.02934573,105830.0,105820.0,1.39474291]
[1747611135483,0.02334573,105830.0,105820.0,1.39474291]
[1747611136228,0.01889545,105840.0,105830.0,0.27922859]
[1747611136463,0.02834349,105840.0,105830.0,0.5595695]
[1747611136671,0.21730859,105840.0,105830.0,0.55012075]
[1747611136826,0.21730859,105840.0,105830.0,0.5595695]
[1747611137231,0.20786073,105840.0,105830.0,0.5595695]
[1747611137473,0.20786073,105840.0,105830.0,0.55012075]
[1747611137625,0.19841269,105840.0,105830.0,0.55012075]
[1747611137824,0.19841269,105840.0,105830.0,0.56579362]
[1747611138034,0.02834367,105840.0,105830.0,0.58469086]
[1747611138288,0.2267345,105850.0,105840.0,0.07134822]
[1747611138504,0.20784101,105850.0,105840.0,0.2890294]
[1747611138874,0.20784101,105850.0,105840.0,0.0973094]
[1747611138875,0.20916901,105850.0,105840.0,0.0973094]
[1747611139090,0.19841251,105840.0,105830.0,0.67522394]
[1747611139286,0.19841251,105840.0,105830.0,0.4137]
[1747611139498,0.26031251,105840.0,105830.0,0.4137]
[1747611139717,0.19843126,105830.0,105820.0,0.2135675]
[1747611140256,0.23043126,105830.0,105820.0,0.0211275]
[1747611140485,0.19845001,105820.0,105810.0,0.40244464]
[1747611140686,0.19977801,105820.0,105810.0,0.49975404]
[1747611140892,0.19977801,105820.0,105810.0,0.40244464]
[1747611141087,0.19977801,105820.0,105810.0,0.384329]
[1747611141493,0.19977801,105820.0,105810.0,8.9e-05]
[1747611141944,0.81696908,105820.0,105810.0,8.9e-05]
[1747611142079,0.91427848,105820.0,105810.0,0.004089]
[1747611142425,1.10599848,105820.0,105810.0,0.004089]
[1747611143103,1.13053933,105820.0,105810.0,8.9e-05]
[1747611143310,0.89130741,105820.0,105810.0,0.002089]
[1747611143735,0.69958741,105820.0,105810.0,0.002089]
[1747611143949,0.23177801,105820.0,105810.0,0.002089]
[1747611144157,0.23177801,105820.0,105810.0,0.001089]
[1747611144397,0.23177801,105820.0,105810.0,8.9e-05]
[1747611144610,0.23277801,105820.0,105810.0,8.9e-05]
[1747611144798,0.20077801,105820.0,105810.0,8.9e-05]
[1747611145648,0.19965801,105820.0,105810.0,8.9e-05]
[1747611146024,0.20910775,105820.0,105810.0,8.9e-05]
[1747611146436,0.19965801,105820.0,105810.0,8.9e-05]
[1747611146638,0.19132818,105820.0,105810.0,8.9e-05]
[1747611147431,0.19032818,105820.0,105810.0,8.9e-05]
[1747611147900,0.19032818,105820.0,105810.0,0.001089]
[1747611148103,0.19032818,105820.0,105810.0,0.002089]
[1747611149480,0.19032818,105820.0,105810.0,0.20055795]
[1747611149684,0.19032818,105820.0,105810.0,0.002089]
[1747611150757,0.001328,105820.0,105810.0,0.31676807]
[1747611150966,0.02022739,105820.0,105810.0,0.31676807]
[1747611151136,0.02967668,105820.0,105810.0,0.31676807]
[1747611151541,0.0391266,105820.0,105810.0,0.34706807]
[1747611151795,0.0391266,105820.0,105810.0,0.35328463]
[1747611152180,0.22812678,105820.0,105810.0,0.31353436]
[1747611152391,0.20922793,105820.0,105810.0,0.00830556]
[1747611158799,0.24232793,105820.0,105810.0,0.00830556]
[1747611159042,0.27312793,105820.0,105810.0,0.00830556]
[1747611159248,0.487819,105820.0,105810.0,0.00830556]
[1747611159462,0.5851284,105820.0,105810.0,0.00830556]
[1747611159666,0.9251284,105820.0,105810.0,0.002089]
[1747611160091,0.93966925,105820.0,105810.0,0.002089]
[1747611160323,0.94966925,105820.0,105810.0,0.002089]
[1747611160526,0.95966925,105820.0,105810.0,8.9e-05]
[1747611160967,0.60873886,105800.0,105790.0,0.01811564]
[1747611161090,1.30929933,105800.0,105790.0,0.01811564]
[1747611161901,0.23687818,105780.0,105770.0,0.01951081]
[1747611162031,0.26877818,105780.0,105770.0,0.01951081]
[1747611162633,0.82346925,105780.0,105770.0,0.01951081]
[1747611163053,0.82484426,105780.0,105770.0,0.01951081]
[1747611163677,0.82484426,105780.0,105770.0,0.02051081]
[1747611164236,0.92215366,105780.0,105770.0,0.02151081]
[1747611164536,0.19856233,105760.0,105740.0,0.60631413]
[1747611164689,0.19856233,105760.0,105740.0,0.4861094]
[1747611164690,0.19858137,105750.0,105740.0,0.4861094]
[1747611164894,0.19858137,105750.0,105740.0,0.49556646]
[1747611165311,0.19858137,105750.0,105740.0,0.4861094]
[1747611165739,0.19858137,105750.0,105740.0,0.68470964]
[1747611165912,0.19858137,105750.0,105740.0,0.4861094]
[1747611166439,0.19858137,105750.0,105740.0,0.0973094]
[1747611166657,0.19858137,105750.0,105740.0,0.3002294]
[1747611166860,0.19858137,105750.0,105740.0,0.008]
[1747611167531,0.19858137,105750.0,105740.0,0.02979985]
[1747611167968,0.19858137,105750.0,105740.0,0.004]
[1747611168182,0.22718137,105750.0,105740.0,0.004]
[1747611168390,0.22718137,105750.0,105720.0,1.02247099]
[1747611168391,0.25928137,105750.0,105720.0,1.02247099]
[1747611168595,0.20807654,105730.0,105720.0,1.3098894]
[1747611168818,0.20807654,105730.0,105720.0,0.0993094]
[1747611169050,0.20807654,105730.0,105720.0,0.002]
[1747611169697,0.20807654,105730.0,105720.0,0.005]
[1747611169904,0.20807654,105730.0,105720.0,0.00947111]
[1747611170100,0.20807654,105730.0,105720.0,0.00647111]
[1747611170518,0.20807654,105730.0,105720.0,0.00947111]
[1747611171072,0.20807654,105730.0,105720.0,0.03102114]
[1747611171277,0.20807654,105730.0,105720.0,0.00947111]
[1747611171724,0.24982529,105750.0,105720.0,0.19865007]
[1747611171855,0.19860016,105740.0,105730.0,0.00945805]
[1747611172055,0.18912529,105750.0,105740.0,0.00945706]
[1747611172255,0.01891297,105740.0,105730.0,0.31484345]
[1747611172517,0.03782701,105740.0,105730.0,0.35422834]
[1747611172729,0.21751384,105740.0,105730.0,0.35422834]
[1747611173194,0.19860033,105740.0,105730.0,0.32097047]
[1747611173331,0.18914318,105740.0,105730.0,0.29047047]
[1747611173732,0.19860033,105740.0,105730.0,0.29047047]
[1747611173934,0.01891404,105740.0,105730.0,0.31884372]
[1747611174193,0.01891404,105740.0,105730.0,0.37714372]
[1747611174773,0.02837049,105740.0,105730.0,0.38660114]
[1747611174972,0.03782755,105740.0,105730.0,0.38660123]
[1747611175337,0.03782675,105740.0,105730.0,0.39605865]
[1747611175563,0.02836977,105740.0,105730.0,0.39605865]
[1747611175789,0.03782675,105740.0,105730.0,0.39605865]
[1747611176000,0.22697073,105740.0,105730.0,0.33988612]
[1747611176214,0.22697073,105740.0,105730.0,0.31884363]
[1747611176640,0.03782755,105740.0,105730.0,0.31884363]
[1747611176868,0.21751402,105740.0,105730.0,0.5088263]
[1747611177074,0.21751402,105740.0,105730.0,0.3093863]
[1747611177287,0.21751402,105740.0,105730.0,0.5086663]
[1747611177498,0.21751402,105740.0,105730.0,0.5181239]
[1747611177712,0.22697117,105740.0,105730.0,0.5181239]
[1747611178163,0.22697117,105740.0,105730.0,0.3188439]
[1747611178372,0.02837084,105740.0,105730.0,0.78050132]
[1747611178578,0.21751402,105740.0,105730.0,0.7710439]
[1747611178788,0.21751402,105740.0,105730.0,0.7025863]
[1747611179067,0.21751402,105740.0,105730.0,0.69312843]
[1747611179288,0.20805722,105740.0,105730.0,0.69312843]
[1747611179709,0.19860024,105740.0,105730.0,0.1013094]
[1747611180271,0.19860024,105740.0,105730.0,0.11076745]
[1747611180480,0.19860024,105740.0,105730.0,0.12022541]
[1747611180715,0.19860024,105740.0,105730.0,0.30938648]
[1747611180916,0.18914318,105740.0,105730.0,0.30938648]
[1747611181328,0.19860024,105740.0,105730.0,0.30938648]
[1747611181826,0.01891386,105740.0,105730.0,0.31884417]
[1747611182350,0.22697055,105740.0,105730.0,0.51824417]
[1747611182503,0.03782737,105740.0,105730.0,0.52770159]
[1747611182904,0.01891216,105750.0,105740.0,0.20805687]
[1747611183115,0.22694943,105750.0,105740.0,0.21751385]
[1747611183315,0.2174728,105760.0,105750.0,0.21749344]
[1747611183527,0.00945385,105770.0,105760.0,0.23638219]
[1747611183735,0.00945385,105770.0,105760.0,0.33369177]
[1747611183736,0.02836216,105770.0,105760.0,0.33369177]
[1747611184161,0.03781663,105770.0,105760.0,0.32423703]
[1747611184552,0.21745231,105770.0,105760.0,0.30532728]
[1747611184969,0.198544,105770.0,105760.0,0.35667218]
[1747611185184,0.19985305,105780.0,105770.0,0.198544]
[1747611185390,0.19985305,105780.0,105770.0,0.10676387]
[1747611185808,0.19985305,105780.0,105770.0,0.0973094]
[1747611186228,0.22624382,105770.0,105760.0,0.001]
[1747611186443,0.25894382,105770.0,105760.0,0.001]
[1747611186661,0.20803718,105750.0,105740.0,0.20068]
[1747611186864,0.20803718,105750.0,105740.0,0.2979894]
[1747611187141,0.23533718,105750.0,105740.0,0.0973094]
[1747611187899,0.23533718,105750.0,105740.0,0.1003094]
[1747611188756,0.2258811,105750.0,105740.0,0.1033094]
[1747611188897,0.23533718,105750.0,105740.0,0.003]
[1747611189810,0.20805651,105740.0,105730.0,0.84591951]
[1747611190174,0.20805651,105740.0,105730.0,0.94322891]
[1747611190381,0.00945581,105750.0,105740.0,0.21751384]
[1747611190615,0.0212,105770.0,105760.0,0.20801743]
[1747611190837,0.22690607,105770.0,105760.0,0.2080177]
[1747611191049,0.22690607,105770.0,105760.0,0.40933788]
[1747611191258,0.198544,105770.0,105760.0,0.39988269]
[1747611191471,0.198544,105770.0,105760.0,0.49719209]
[1747611191472,0.01890867,105770.0,105760.0,0.49719209]
[1747611191707,0.2079982,105770.0,105760.0,0.2986294]
[1747611191932,0.2079982,105770.0,105760.0,0.497192]
[1747611192134,0.2079982,105770.0,105760.0,0.2986294]
[1747611192992,0.2079982,105770.0,105760.0,0.2996294]
[1747611193197,0.2079982,105770.0,105760.0,0.0983094]
[1747611193351,0.2079982,105770.0,105760.0,0.2997494]
[1747611194651,0.2079982,105770.0,105760.0,0.03749243]
[1747611195061,0.2284982,105770.0,105760.0,0.03749243]
[1747611195269,0.01891153,105750.0,105740.0,0.810868]
[1747611195480,0.19858128,105750.0,105740.0,0.4137]
[1747611195709,0.21042529,105750.0,105740.0,0.81382]
[1747611196157,0.21042529,105750.0,105740.0,0.61278]
[1747611196376,0.19860016,105740.0,105730.0,0.60783111]
[1747611196593,0.19860016,105740.0,105730.0,0.61823576]
[1747611196835,0.21751411,105740.0,105730.0,0.82631248]
[1747611197060,0.01891351,105740.0,105730.0,0.9330793]
[1747611197277,0.18910741,105760.0,105750.0,0.21747747]
[1747611197278,0.00945483,105760.0,105750.0,0.21747747]
[1747611197485,0.03781914,105760.0,105750.0,0.20802193]
[1747611197687,0.04727478,105760.0,105750.0,0.20802202]
[1747611197896,0.21747262,105760.0,105750.0,0.20802202]
[1747611198132,0.1985626,105760.0,105740.0,0.2080388]
[1747611198359,0.00945572,105750.0,105740.0,0.6788022]
[1747611198564,0.02836707,105750.0,105740.0,0.69874531]
[1747611198777,0.01891117,105750.0,105740.0,0.69874531]
[1747611198987,0.00945554,105750.0,105740.0,0.71904531]